bitfinex-derivatives/quotes_ETHF0:USTF0_20240818
["timestamp","ask_amount","ask_price","bid_price","bid_amount"]
[1723993829607,2.90914373,2661.2,2661.1,46.43607]
[1723993831006,4.78754373,2661.2,2661.1,44.5576]
[1723993831202,2.90914373,2661.2,2661.1,42.67847]
[1723993831507,2.90914373,2661.2,2661.1,46.43607]
[1723993835007,0.95064607,2661.2,2661.1,46.43607]
[1723993837406,0.00364607,2661.2,2661.1,46.43607]
[1723993841204,0.947,2661.3,2661.1,46.43607]
[1723993841205,2.90549766,2661.5,2661.2,1.8784]
[1723993841434,1.96412808,2661.6,2661.5,1.87819]
[1723993841611,0.00563042,2661.6,2661.5,1.87819]
[1723993841942,1.95849766,2661.9,2661.6,1.87812]
[1723993842114,2.90549766,2662.2,2661.8,0.947]
[1723993842303,2.90974746,2662.2,2662.1,1.87777]
[1723993842503,0.9512498,2662.2,2662.1,1.87777]
[1723993842710,2.90974746,2662.2,2662.1,1.87777]
[1723993842915,0.9512498,2662.2,2662.1,1.87777]
[1723993843115,0.9512498,2662.2,2662.1,2.22207]
[1723993843813,0.9512498,2662.2,2662.1,43.02207]
[1723993848714,0.9512498,2662.2,2662.1,46.77807]
[1723993849714,0.0042498,2662.2,2662.1,46.77807]
[1723993850721,0.9512498,2662.2,2662.1,46.77807]
[1723993857024,0.0042498,2662.2,2662.1,46.77807]
[1723993860519,0.9512498,2662.2,2662.1,46.77807]
[1723993861029,0.0042498,2662.2,2662.1,46.77807]
[1723993863631,0.0042498,2662.2,2662.1,47.72507]
[1723993863828,0.3688,2662.5,2662.4,1.87756]
[1723993864020,0.947,2662.6,2662.3,1.87763]
[1723993864254,0.947,2662.6,2662.5,1.87749]
[1723993864553,0.947,2662.6,2662.5,42.67749]
[1723993864740,6.15928,2663.0,2662.5,45.8468]
[1723993865045,4.5036758,2663.0,2662.9,1.87721]
[1723993865645,0.3488758,2663.0,2662.9,1.87721]
[1723993866047,0.3488758,2663.0,2662.9,2.58011]
[1723993866848,0.0098758,2663.0,2662.9,6.33531]
[1723993867042,0.0098758,2663.0,2662.9,6.70071]
[1723993867251,0.9568758,2663.0,2662.9,6.70071]
[1723993867436,0.0098758,2663.0,2662.9,6.70071]
[1723993869847,0.9568758,2663.0,2662.9,6.33531]
[1723993870031,0.9568758,2663.0,2662.9,1.87721]
[1723993870261,1.3111758,2663.0,2662.9,1.87721]
[1723993873133,5.0663758,2663.0,2662.7,1.87735]
[1723993873325,0.947,2662.8,2662.7,1.87735]
[1723993877325,0.947,2662.9,2662.8,1.87728]
[1723993877528,0.9568758,2663.0,2662.9,1.87721]
[1723993877729,0.9568758,2663.0,2662.9,2.24581]
[1723993877929,0.9568758,2663.0,2662.9,6.00101]
[1723993878523,0.9568758,2663.0,2662.9,2.24581]
[1723993878738,0.9568758,2663.0,2662.9,6.00101]
[1723993879235,0.0098758,2663.0,2662.9,6.00101]
[1723993879436,0.0098758,2663.0,2662.9,7.87822]
[1723993881126,0.0098758,2663.0,2662.9,6.00101]
[1723993886042,0.9568758,2663.0,2662.9,6.00101]
[1723993886431,0.9568758,2663.0,2662.9,1.87721]
[1723993886832,0.0098758,2663.0,2662.9,1.87721]
[1723993887637,0.0098758,2663.0,2662.9,4.70142]
[1723993889329,0.0098758,2663.0,2662.9,8.45662]
[1723993891842,0.0098758,2663.0,2662.9,8.80122]
[1723993894840,0.0098758,2663.0,2662.9,5.04602]
[1723993895041,0.0098758,2663.0,2662.9,8.80122]
[1723993896947,0.0098758,2663.0,2662.9,6.92401]
[1723993897252,0.0098758,2663.0,2662.9,5.97701]
[1723993897454,0.3482758,2663.0,2662.9,5.97701]
[1723993897656,1.2952758,2663.0,2662.9,1.87721]
[1723993897952,1.6447758,2663.0,2662.9,1.87721]
[1723993898345,0.6977758,2663.0,2662.9,1.87721]
[1723993899452,0.3482758,2663.0,2662.9,1.87721]
[1723993905140,0.3482758,2663.0,2662.9,2.82421]
[1723993906755,0.0098758,2663.0,2662.9,2.82421]
[1723993906959,0.0098758,2663.0,2662.9,3.19401]
[1723993908552,0.0098758,2663.0,2662.9,6.94921]
[1723993909160,0.0098758,2663.0,2662.9,3.19401]
[1723993909355,1.2941,2663.3,2662.9,12.93388682]
[1723993909356,1.95849766,2663.3,2662.9,12.93388682]
[1723993909568,1.95849766,2663.5,2663.2,3.2078]
[1723993909760,1.95849766,2663.5,2663.4,1.87685]
[1723993910253,1.95849766,2663.5,2663.4,2.22165]
[1723993910564,1.96319961,2663.5,2663.4,43.02165]
[1723993911260,0.00470195,2663.5,2663.4,43.02165]
[1723993911651,1.96319961,2663.5,2663.4,43.02165]
[1723993912057,0.00470195,2663.5,2663.4,43.02165]
[1723993916864,0.00470195,2663.5,2663.4,46.77605]
[1723993919165,0.00470195,2663.5,2663.4,43.02165]
[1723993920661,0.00470195,2663.5,2663.4,46.77605]
[1723993920861,0.00470195,2663.5,2663.4,43.02165]
[1723993921070,0.00470195,2663.5,2663.4,46.77605]
[1723993921468,0.00470195,2663.5,2663.4,43.02165]
[1723993926177,0.00563042,2663.7,2663.5,1.87678]
[1723993926475,3.2078,2664.0,2663.9,1.8765]
[1723993926677,6.9614,2664.0,2663.9,1.8765]
[1723993926883,6.9614,2664.0,2663.9,42.6765]
[1723993927085,6.9614,2664.0,2663.9,43.0173]
[1723993927283,6.96543001,2664.0,2663.9,43.0173]
[1723993928090,6.96543001,2664.0,2663.9,43.9643]
[1723993928091,3.21183001,2664.0,2663.9,43.9643]
[1723993929982,0.00403001,2664.0,2663.9,43.9643]
[1723993930883,0.00403001,2664.0,2663.9,47.1721]
[1723993934880,0.00403001,2664.0,2663.9,46.2251]
[1723993935091,0.00403001,2664.0,2663.9,47.1721]
[1723993935388,0.37473001,2664.0,2663.9,47.1721]
[1723993935586,0.72083001,2664.0,2663.9,47.1721]
[1723993936186,0.72083001,2664.0,2663.9,43.9643]
[1723993942686,0.72083001,2664.0,2663.9,40.8]
[1723993942908,10.50566001,2664.0,2663.7,0.00563042]
[1723993943197,6.75211001,2664.0,2663.7,2.82927042]
[1723993943497,6.75211001,2664.0,2663.8,42.67657]
[1723993943498,5.80511001,2664.0,2663.8,42.67657]
[1723993943987,9.55871001,2664.0,2663.8,42.67657]
[1723993944190,0.72083001,2664.0,2663.9,1.8765]
[1723993944692,6.35086001,2664.0,2663.8,43.62354]
[1723993944990,2.59726001,2664.0,2663.8,42.67654]
[1723993945184,2.67932767,2664.0,2663.8,40.8]
[1723993945385,1.8765,2663.9,2663.8,40.8]
[1723993946191,3.83499766,2663.9,2663.8,40.8]
[1723993948500,1.8765,2663.9,2663.8,40.8]
[1723993949390,3.83499766,2663.9,2663.8,40.8]
[1723993951400,1.95849766,2663.9,2663.8,42.67657]
[1723993951602,1.95849766,2663.9,2663.8,43.02677]
[1723993951800,1.95849766,2663.9,2663.8,43.97377]
[1723993954702,5.04572183,2664.0,2663.8,43.97377]
[1723993954904,1.95786282,2663.9,2663.8,43.97377]
[1723993956096,1.95786282,2663.9,2663.8,44.32177]
[1723993957097,0.00403001,2664.0,2663.9,1.8765]
[1723993957301,0.00403001,2664.0,2663.9,3.1648]
[1723993957600,1.95786282,2664.1,2663.9,10.6714]
[1723993957801,1.95786282,2664.5,2664.4,1.87615]
[1723993957995,3.5669,2664.8,2664.5,1.87608]
[1723993957996,1.95786282,2664.6,2664.5,1.87608]
[1723993958195,1.95786282,2664.6,2664.4,4.1548]
[1723993958196,2.80753182,2664.8,2664.6,1.87594]
[1723993958391,6.56033182,2664.8,2664.6,1.87594]
[1723993958798,6.90896925,2664.8,2664.6,1.87930701]
[1723993958989,4.46053743,2664.8,2664.7,40.8]
[1723993959802,6.90839944,2664.8,2664.7,40.8]
[1723993960404,8.78426944,2664.8,2664.7,40.8]
[1723993961099,6.90839944,2664.8,2664.7,40.8]
[1723993961497,4.46053743,2664.8,2664.7,40.8]
[1723993961706,8.78426944,2664.8,2664.7,40.8]
[1723993962104,6.33640743,2664.8,2664.7,40.8]
[1723993962496,1.87594,2664.7,2664.6,0.00336701]
[1723993962703,5.26980796,2664.7,2664.6,0.00336701]
[1723993962902,9.02260796,2664.7,2664.6,0.00336701]
[1723993963814,12.23040796,2664.7,2664.6,0.00336701]
[1723993965509,6.57574,2664.7,2664.6,0.00336701]
[1723993965709,5.62874,2664.7,2664.6,0.00336701]
[1723993966011,3.7528,2664.7,2664.6,1.87937701]
[1723993966211,5.71053321,2664.7,2664.6,1.87937701]
[1723993967210,7.58647321,2664.7,2664.6,0.00336701]
[1723993967414,5.62874,2664.7,2664.6,0.00336701]
[1723993969311,9.02260796,2664.7,2664.6,0.00336701]
[1723993969512,12.23040796,2664.7,2664.6,0.00336701]
[1723993970113,12.57610796,2664.7,2664.6,0.00336701]
[1723993970909,14.45204796,2664.7,2664.6,0.00336701]
[1723993972118,12.57610796,2664.7,2664.6,0.00336701]
[1723993979846,14.45204796,2664.7,2664.6,0.00336701]
[1723993980005,12.57610796,2664.7,2664.6,0.00336701]
[1723993984416,1.87648,2664.0,2663.8,0.947]
[1723993984745,1.87643,2664.0,2663.9,2.21744]
[1723993984909,1.87643,2664.0,2663.9,43.01744]
[1723993985314,2.90384862,2664.1,2663.9,41.14454581]
[1723993985508,1.95684862,2664.0,2663.9,43.02098581]
[1723993985718,1.87643,2664.0,2663.9,43.02098581]
[1723993986421,4.78023862,2664.1,2663.9,43.02098581]
[1723993986617,4.78027862,2664.0,2663.9,41.14454581]
[1723993986819,5.26949077,2664.0,2663.9,41.14454581]
[1723993987122,2.82343,2664.0,2663.9,41.14454581]
[1723993987316,3.8329935,2664.0,2663.9,43.02104581]
[1723993987511,1.87643,2664.0,2663.9,43.02104581]
[1723993987711,3.8329935,2664.0,2663.9,43.02104581]
[1723993988618,1.9565635,2664.0,2663.9,43.02104581]
[1723993989008,1.9565635,2664.1,2664.0,1.87643]
[1723993989712,1.9565635,2664.1,2664.0,42.67643]
[1723993990921,7.9876635,2664.2,2664.1,1.87636]
[1723993991126,7.9876635,2664.2,2664.1,0.3519]
[1723993991518,6.0311,2664.2,2664.1,0.3519]
[1723993991712,6.0311,2664.2,2664.1,41.1519]
[1723993992220,6.0311,2664.2,2664.1,43.02826]
[1723993992426,6.0311,2664.2,2664.1,41.1519]
[1723993994328,1.87643,2664.0,2663.9,0.34454581]
[1723993994515,4.77965823,2664.0,2663.9,0.34454581]
[1723993994926,5.12895823,2664.0,2663.9,0.34454581]
[1723993996331,3.17273,2664.0,2663.9,0.34454581]
[1723993997047,5.12946928,2664.0,2663.9,0.34454581]
[1723993997434,3.17273,2664.0,2663.9,0.34454581]
[1723993997627,5.12942547,2664.0,2663.9,0.34454581]
[1723993998329,3.83312547,2664.0,2663.9,2.22104581]
[1723993999137,3.83312547,2664.0,2663.9,0.34454581]
[1723994003633,4.78012547,2664.0,2663.9,0.00354581]
[1723994003839,3.18923,2664.0,2663.9,0.00354581]
[1723994004138,1.87678,2663.5,2663.4,0.3636]
[1723994004344,4.78066985,2663.5,2663.4,0.3636]
[1723994004556,4.78066985,2663.5,2663.4,41.1636]
[1723994004982,3.83366985,2663.5,2663.4,41.16824451]
[1723994005242,1.95688985,2663.5,2663.4,43.04509451]
[1723994005448,4.78060985,2663.6,2663.4,43.04509451]
[1723994005656,1.95688985,2663.5,2663.4,43.04509451]
[1723994006357,7.98840985,2663.6,2663.4,43.04509451]
[1723994006960,1.95688985,2663.5,2663.4,43.04509451]
[1723994007161,7.98840985,2663.6,2663.4,43.04509451]
[1723994007749,5.16468985,2663.6,2663.5,1.87678]
[1723994008060,3.2078,2663.6,2663.5,1.87678]
[1723994008650,1.87667,2663.7,2663.5,1.87678]
[1723994009258,1.87667,2663.7,2663.6,0.372]
[1723994009459,4.78050985,2663.8,2663.6,2.24871]
[1723994009860,3.83350985,2663.8,2663.6,2.24871]
[1723994010054,1.87662,2663.8,2663.7,1.87664]
[1723994010255,2.82362,2663.8,2663.6,2.58877]
[1723994010553,4.78050985,2663.8,2663.6,2.58877]
[1723994011256,2.82362,2663.8,2663.6,2.58877]
[1723994012353,4.78050985,2663.8,2663.6,2.58877]
[1723994012759,2.90388985,2663.8,2663.7,1.87664]
[1723994014160,7.04115985,2664.0,2663.8,1.87657]
[1723994014362,5.16468985,2664.0,2663.9,2.2475]
[1723994015064,7.04111985,2664.0,2663.9,0.371]
[1723994015455,7.04111985,2664.0,2663.9,2.2475]
[1723994015850,5.16468985,2664.0,2663.9,2.2475]
[1723994016562,7.04111985,2664.0,2663.9,2.2475]
[1723994016766,5.16468985,2664.0,2663.9,2.2475]
[1723994017155,3.2078,2664.0,2663.9,2.2475]
[1723994017377,7.04111985,2664.0,2663.9,2.2475]
[1723994018360,3.83331985,2664.0,2663.9,0.371]
[1723994018559,5.08423,2664.0,2663.9,0.371]
[1723994019659,1.8765,2663.9,2663.8,1.87653]
[1723994019970,4.7809106,2663.9,2663.8,1.87653]
[1723994020165,2.9044106,2663.9,2663.8,1.87653]
[1723994021877,2.9044106,2663.9,2663.6,0.372]
[1723994021878,0.947,2663.9,2663.6,0.372]
[1723994022166,0.947,2663.7,2663.6,2.24871]
[1723994022663,2.82364,2663.7,2663.6,2.24871]
[1723994027665,0.947,2663.7,2663.6,2.24871]
[1723994027865,2.82364,2663.7,2663.6,2.24871]
[1723994028670,0.947,2663.7,2663.6,2.24871]
[1723994029368,4.78241147,2663.7,2663.6,0.372]
[1723994029667,6.03144,2663.7,2663.6,0.372]
[1723994030057,8.47755231,2663.7,2663.6,0.372]
[1723994030365,5.26975231,2663.7,2663.6,0.372]
[1723994030569,2.82364,2663.7,2663.6,0.372]
[1723994030967,1.87678,2663.5,2663.4,40.80464451]
[1723994031171,4.70056,2663.5,2663.4,40.80464451]
[1723994031476,11.39023293,2663.5,2663.4,40.80464451]
[1723994031678,11.75623293,2663.5,2663.4,40.80464451]
[1723994032266,8.82096,2663.5,2663.4,40.80464451]
[1723994034880,6.94418,2663.5,2663.4,40.80464451]
[1723994035173,6.94418,2663.5,2663.4,0.00464451]
[1723994035565,3.18978,2663.5,2663.4,40.80464451]
[1723994035762,5.63758469,2663.5,2663.4,40.80464451]
[1723994040376,5.27158469,2663.5,2663.4,40.80464451]
[1723994040578,5.27158469,2663.5,2663.4,41.14984451]
[1723994040777,2.82378,2663.5,2663.4,41.14984451]
[1723994041074,5.27158469,2663.5,2663.4,41.14984451]
[1723994042974,5.27158469,2663.5,2663.4,0.00464451]
[1723994042975,10.35616469,2663.5,2663.4,0.00464451]
[1723994043170,14.11056469,2663.5,2663.4,0.00464451]
[1723994045079,12.23378469,2663.5,2663.4,0.00464451]
[1723994046178,8.47938469,2663.5,2663.4,0.00464451]
[1723994049285,5.65560469,2663.5,2663.4,0.00464451]
[1723994049585,1.95794948,2663.5,2663.4,5.63589451]
[1723994049882,2.90494948,2663.5,2663.4,5.63589451]
[1723994050076,0.947,2663.5,2663.4,5.63589451]
[1723994050583,2.90494948,2663.5,2663.4,5.63589451]
[1723994052182,4.78172948,2663.5,2663.4,5.63589451]
[1723994052482,4.78172948,2663.5,2663.4,0.00464451]
[1723994052780,4.78172948,2663.5,2663.4,1.88149451]
[1723994053986,4.78172948,2663.5,2663.4,0.00464451]
[1723994054188,2.82378,2663.5,2663.4,0.00464451]
[1723994056286,3.18338,2663.5,2663.4,0.00464451]
[1723994057375,4.78168165,2663.5,2663.4,0.00464451]
[1723994059083,4.78168165,2663.5,2663.4,40.80464451]
[1723994059288,2.82378,2663.5,2663.4,40.80464451]
[1723994061182,6.03158,2663.5,2663.4,40.80464451]
[1723994061679,4.1548,2663.5,2663.4,42.68149451]
[1723994061881,6.11333244,2663.5,2663.4,42.68149451]
[1723994062292,6.11333244,2663.5,2663.4,46.43589451]
[1723994062596,1.95853244,2663.8,2663.4,45.50604451]
[1723994062798,2.90553244,2663.8,2663.7,1.87664]
[1723994062981,1.95853244,2663.8,2663.7,1.87664]
[1723994063186,6.54980469,2664.0,2663.8,1.87657]
[1723994063187,2.90553244,2663.9,2663.8,1.87657]
[1723994065892,2.90553244,2663.9,2663.8,5.63017]
[1723994066088,1.95853244,2664.0,2663.9,1.8765]
[1723994066294,4.1548,2664.1,2664.0,1.87643]
[1723994066493,4.1548,2664.1,2664.0,2.24823]
[1723994066699,4.1548,2664.1,2664.0,6.00183]
[1723994066884,0.947,2664.1,2664.0,6.00183]
[1723994074999,0.947,2664.2,2664.1,1.87636]
[1723994075393,0.947,2664.2,2664.1,5.62996]
[1723994077005,0.947,2664.2,2664.1,5.99566]
[1723994077306,0.3702,2664.7,2664.1,12.3271]
[1723994077307,0.947,2664.4,2664.1,12.3271]
[1723994077501,0.947,2664.4,2664.3,1.87622]
[1723994077998,0.947,2664.4,2664.3,5.62982]
[1723994078996,0.947,2664.4,2664.3,46.42982]
[1723994079205,1.87603,2664.6,2664.4,1.87614]
[1723994079427,1.87603,2664.6,2664.5,0.3638]
[1723994079599,0.3702,2664.7,2664.5,0.3638]
[1723994079600,4.20471244,2664.7,2664.5,0.3638]
[1723994080606,2.32873244,2664.7,2664.5,2.23985]
[1723994080808,0.947,2664.6,2664.5,2.23985]
[1723994081003,0.947,2664.6,2664.5,2.23988]
[1723994081915,0.947,2664.6,2664.5,2.60428]
[1723994082109,0.947,2664.6,2664.5,6.35708]
[1723994082407,0.947,2664.7,2664.6,1.87601]
[1723994083011,0.947,2664.7,2664.6,5.62881]
[1723994085213,0.00443743,2664.8,2664.7,1.87594]
[1723994085414,0.95143743,2664.8,2664.7,1.87594]
[1723994086911,0.00443743,2664.8,2664.7,1.87594]
[1723994087122,0.95143743,2664.8,2664.7,1.87594]
[1723994089116,0.95143743,2664.8,2664.7,5.62874]
[1723994093305,0.00443743,2664.8,2664.7,6.57574]
[1723994094707,0.00443743,2664.8,2664.7,9.78354]
[1723994094906,0.00443743,2664.8,2664.7,8.83654]
[1723994108017,0.00443743,2664.8,2664.7,5.08374]
[1723994108219,0.00443743,2664.8,2664.7,8.83654]
[1723994108823,0.00443743,2664.8,2664.7,5.62874]
[1723994112328,0.00443743,2664.8,2664.7,7.50468]
[1723994114426,0.00443743,2664.8,2664.7,3.75188]
[1723994117731,0.00563042,2665.0,2664.9,1.8758]
[1723994118031,0.00563042,2665.0,2664.9,7.9064]
[1723994118233,1.95853244,2665.5,2665.4,1.87545]
[1723994118435,1.95853244,2665.7,2665.4,0.947]
[1723994118728,0.337,2665.8,2665.7,1.87523]
[1723994118942,1.28739806,2665.8,2665.7,1.87523]
[1723994119231,0.34039806,2665.8,2665.7,1.87523]
[1723994119433,0.34039806,2665.8,2665.7,42.67523]
[1723994120125,0.34039806,2665.8,2665.7,43.62223]
[1723994120626,0.34039806,2665.8,2665.7,42.67523]
[1723994121028,1.28739806,2665.8,2665.7,42.67523]
[1723994124439,1.63019806,2665.8,2665.7,42.67523]
[1723994124624,1.63019806,2665.8,2665.7,40.8]
[1723994124830,1.63019806,2665.8,2665.7,42.67523]
[1723994125633,1.63019806,2665.8,2665.7,40.8]
[1723994125831,1.63019806,2665.8,2665.7,42.67523]
[1723994129640,0.00339806,2665.8,2665.7,42.67523]
[1723994129939,0.00339806,2665.8,2665.7,43.01213]
[1723994131650,0.00339806,2665.8,2665.7,43.95913]
[1723994132750,0.00339806,2665.8,2665.7,42.67523]
[1723994133046,0.37479806,2665.8,2665.7,42.67523]
[1723994133245,0.73509806,2665.8,2665.7,42.67523]
[1723994133546,0.00339806,2665.8,2665.7,42.67523]
[1723994134142,0.00339806,2665.8,2665.7,43.62223]
[1723994138935,0.00339806,2665.8,2665.7,42.67523]
[1723994139249,0.00339806,2665.8,2665.7,43.62223]
[1723994143451,1.95853244,2666.1,2665.9,1.87509]
[1723994143746,0.3397,2666.5,2666.4,1.87474]
[1723994143951,1.95853244,2666.7,2666.4,0.947]
[1723994144147,1.95853244,2666.7,2666.3,3.2078]
[1723994144148,3.5525,2666.8,2666.7,1.87453]
[1723994144356,0.3447,2666.8,2666.7,1.87453]
[1723994144542,4.09904962,2666.8,2666.7,42.67453]
[1723994144740,6.96214962,2666.8,2666.7,42.67453]
[1723994144940,0.00474962,2666.8,2666.7,43.62153]
[1723994145945,0.00474962,2666.8,2666.7,40.8]
[1723994146139,0.00474962,2666.8,2666.7,42.67453]
[1723994147248,0.00474962,2666.8,2666.7,43.62153]
[1723994148252,0.00474962,2666.8,2666.7,42.67453]
[1723994148552,0.00474962,2666.8,2666.7,43.62153]
[1723994160656,0.00474962,2666.8,2666.7,47.37113]
[1723994161364,0.00474962,2666.8,2666.7,43.62153]
[1723994165667,0.00371739,2667.0,2666.9,1.87439]
[1723994165966,0.00371739,2667.0,2666.9,2.82139]
[1723994166359,0.00371739,2667.0,2666.9,3.18079]
[1723994166559,0.00771019,2667.0,2666.9,3.18079]
[1723994173669,3.21551019,2667.0,2666.9,2.23379]
[1723994173871,0.00771019,2667.0,2666.9,3.18079]
[1723994174771,0.00771019,2667.0,2666.9,6.93039]
[1723994175375,1.874,2667.5,2667.3,1.87406]
[1723994175376,2.30523244,2667.5,2667.3,1.87406]
[1723994175589,0.3467,2667.5,2667.3,1.87406]
[1723994175769,5.0425,2667.5,2667.3,1.87406]
[1723994175970,1.2937,2667.5,2667.3,1.87406]
[1723994176177,3.1717868,2667.5,2667.3,1.87805426]
[1723994176476,6.9205868,2667.5,2667.3,1.87805426]
[1723994176668,5.0466168,2667.5,2667.3,1.87805426]
[1723994177574,3.1717968,2667.5,2667.3,1.87805426]
[1723994178361,1.2978168,2667.5,2667.4,1.87404]
[1723994178781,6.9205868,2667.5,2667.3,1.87806426]
[1723994178969,3.1717868,2667.5,2667.3,1.87806426]
[1723994179172,2.2247868,2667.5,2667.3,1.87806426]
[1723994179975,5.9735868,2667.5,2667.3,1.87806426]
[1723994180171,4.0996168,2667.5,2667.4,1.87404]
[1723994180373,0.3508168,2667.5,2667.3,1.87807426]
[1723994180775,2.2247868,2667.5,2667.3,1.87807426]
[1723994181179,0.3508168,2667.5,2667.3,1.87807426]
[1723994181478,0.3508168,2667.5,2667.4,1.87404]
[1723994181680,0.3508168,2667.5,2667.4,3.19314]
[1723994181973,0.3508168,2667.5,2667.4,3.53854]
[1723994181974,0.0041168,2667.5,2667.4,3.53854]
[1723994182277,0.0041168,2667.5,2667.4,44.33854]
[1723994184473,0.0041168,2667.5,2667.4,46.21258]
[1723994184770,0.0041168,2667.5,2667.4,49.96138]
[1723994185180,3.2078,2667.9,2667.4,48.08734]
[1723994185474,3.2078,2667.9,2667.8,1.87376]
[1723994185866,3.2078,2667.9,2667.8,2.21106]
[1723994186069,3.2078,2667.9,2667.8,43.01106]
[1723994186377,3.21056803,2667.9,2667.8,43.01106]
[1723994186580,3.21056803,2667.9,2667.8,43.37166]
[1723994187770,0.00276803,2667.9,2667.8,43.37166]
[1723994191578,0.00276803,2667.9,2667.8,45.24542]
[1723994191776,0.00276803,2667.9,2667.8,48.99342]
[1723994193175,0.00276803,2667.9,2667.8,48.06666]
[1723994195173,0.00276803,2667.9,2667.8,49.94042]
[1723994195371,0.3494,2668.4,2668.3,1.87341]
[1723994195576,1.2964,2668.4,2668.1,2.82613042]
[1723994195775,1.2964,2668.4,2668.1,2.82614042]
[1723994195977,3.16975,2668.4,2668.1,2.82614042]
[1723994196179,1.2964,2668.4,2668.2,1.87348]
[1723994196385,1.2964,2668.4,2668.1,0.95263042]
[1723994196386,3.17430872,2668.4,2668.1,2.82613042]
[1723994196589,1.30096872,2668.4,2668.2,1.87348]
[1723994196772,3.17430872,2668.4,2668.1,2.82613042]
[1723994196974,0.947,2668.2,2668.1,0.00563042]
[1723994197478,0.947,2668.2,2668.1,1.87918042]
[1723994197780,2.82048,2668.2,2668.1,0.00563042]
[1723994198082,2.82048,2668.2,2667.8,41.4979]
[1723994198083,1.87367,2668.0,2667.3,4.15879426]
[1723994198287,0.947,2667.6,2667.5,1.87397]
[1723994198474,0.947,2667.7,2667.5,43.62097]
[1723994198875,1.8738,2667.8,2667.5,43.96247]
[1723994199078,1.8738,2667.8,2667.6,1.8739]
[1723994199385,1.87379,2667.8,2667.5,43.96243]
[1723994199779,0.3649,2667.7,2667.5,43.96243]
[1723994200086,2.23873,2667.7,2667.5,42.0885]
[1723994200282,2.23873,2667.7,2667.5,43.96247]
[1723994201277,2.23873,2667.7,2667.5,42.0885]
[1723994201478,1.8739,2667.6,2667.5,41.747]
[1723994201675,6.5697,2667.6,2667.5,40.8]
[1723994201982,1.87397,2667.5,2667.4,0.00563042]
[1723994202182,2.59007,2667.5,2667.4,0.00563042]
[1723994202386,6.33887,2667.5,2667.4,40.80563042]
[1723994206988,7.28587,2667.5,2667.4,40.80563042]
[1723994207185,9.24306289,2667.5,2667.4,40.80563042]
[1723994207392,7.28587,2667.5,2667.4,40.80563042]
[1723994207991,9.2445434,2667.5,2667.4,40.80563042]
[1723994208193,7.28587,2667.5,2667.4,40.80563042]
[1723994208379,6.33887,2667.5,2667.4,40.80563042]
[1723994208584,9.24467312,2667.5,2667.4,40.80563042]
[1723994208986,7.28587,2667.5,2667.4,40.80563042]
[1723994209795,7.28587,2667.5,2667.4,0.00563042]
[1723994210296,12.28587,2667.5,2667.4,0.00563042]
[1723994210496,7.28587,2667.5,2667.4,0.00563042]
[1723994213992,9.24320682,2667.5,2667.4,0.00563042]
[1723994214196,6.33887,2667.5,2667.4,0.00563042]
[1723994214500,7.28587,2667.5,2667.4,0.00563042]
[1723994214698,8.29674403,2667.5,2667.4,0.00563042]
[1723994215002,8.29674403,2667.5,2667.4,2.22737042]
[1723994215003,4.1162,2667.5,2667.4,2.22737042]
[1723994215297,4.1162,2667.5,2667.4,2.57357042]
[1723994216505,1.95787403,2667.6,2667.5,1.87397]
[1723994216694,2.90487403,2667.6,2667.5,1.87397]
[1723994217201,0.947,2667.6,2667.5,1.87397]
[1723994217396,2.90487403,2667.7,2667.6,1.8739]
[1723994217806,5.70667403,2667.7,2667.6,1.8739]
[1723994217994,7.00247403,2667.7,2667.6,1.8739]
[1723994218394,8.87630403,2667.7,2667.5,1.87393]
[1723994218601,2.9057241,2667.6,2667.4,0.69953042]
[1723994218792,2.9057241,2667.6,2667.4,2.57352042]
[1723994219706,2.9057241,2667.6,2667.5,1.87397]
[1723994219898,4.7796241,2667.6,2667.4,2.57353042]
[1723994220199,2.82097,2667.5,2667.4,0.00563042]
[1723994220406,8.3418941,2667.5,2667.4,0.00563042]
[1723994220601,10.13197,2667.5,2667.4,0.00563042]
[1723994220798,8.3418941,2667.5,2667.4,0.00563042]
[1723994220995,6.38317,2667.5,2667.4,0.00563042]
[1723994221199,10.13197,2667.5,2667.4,0.00563042]
[1723994221504,6.38317,2667.5,2667.4,0.00563042]
[1723994221695,1.87397,2667.5,2667.4,0.00563042]
[1723994221906,1.87397,2667.5,2667.4,0.34413042]
[1723994223301,3.8326941,2667.5,2667.4,0.34413042]
[1723994223500,1.9587241,2667.5,2667.4,2.21817042]
[1723994223800,1.87397,2667.5,2667.4,0.34413042]
[1723994224100,3.8326941,2667.5,2667.4,0.34413042]
[1723994224501,1.87397,2667.5,2667.4,0.34413042]
[1723994224903,1.87397,2667.5,2667.4,2.21817042]
[1723994225104,1.9587241,2667.5,2667.4,0.34413042]
[1723994225302,2.90636285,2667.6,2667.5,1.87397]
[1723994225510,2.90636285,2667.6,2667.5,2.24257]
[1723994225703,2.90636285,2667.6,2667.5,2.60657]
[1723994226298,3.83323285,2667.7,2667.5,0.7326]
[1723994226497,1.95936285,2667.7,2667.6,1.8739]
[1723994226807,3.83319285,2667.7,2667.6,1.8739]
[1723994227011,7.58199285,2667.7,2667.6,1.8739]
[1723994227606,5.70816285,2667.7,2667.6,1.8739]
[1723994227805,5.70816285,2667.7,2667.5,0.7326]
[1723994227806,1.8739,2667.6,2667.5,0.7326]
[1723994228007,1.87397,2667.5,2667.4,0.00563042]
[1723994228310,1.87397,2667.5,2667.4,0.37763042]
[1723994229205,1.87397,2667.5,2667.4,2.25167042]
[1723994230210,1.95964765,2667.5,2667.4,2.25167042]
[1723994230512,1.87397,2667.5,2667.4,2.25167042]
[1723994232708,5.11709765,2667.6,2667.4,2.25167042]
[1723994233214,1.95964765,2667.5,2667.4,2.25167042]
[1723994233421,5.11780555,2667.6,2667.5,1.87397]
[1723994234615,5.11780555,2667.6,2667.4,2.25162042]
[1723994235211,4.78130555,2667.6,2667.4,2.25162042]
[1723994235407,4.78130555,2667.6,2667.5,0.3694]
[1723994235804,4.78130555,2667.6,2667.5,2.24337]
[1723994236604,2.82095,2667.6,2667.5,2.24337]
[1723994236801,2.82095,2667.6,2667.5,0.3694]
[1723994237002,1.87397,2667.5,2667.4,2.25165042]
[1723994237204,3.83538474,2667.5,2667.4,2.25165042]
[1723994238208,1.87397,2667.5,2667.4,2.25165042]